[Event "Romanian Rapid Open 2022"]
[Site "Sebes"]
[Date "2022.12.02"]
[Round "1.23"]
[White "Sida, Flavius-Ovidiu"]
[Black "Cosma, Elena-Luminita"]
[Result "0-1"]
[ECO "D56"]
[WhiteElo "1452"]
[BlackElo "2244"]
[Annotator "TA"]
[PlyCount "54"]
[EventDate "2022.12.02"]
[EventType "rapid"]
[EventCountry "ROU"]
[SourceTitle "playchess.com"]
[Source "ChessBase"]
[SourceQuality "1"]
[TimeControl "600+5"]

{[%evp 19,54,-18,-17,-61,-60,-78,-68,-95,-43,-41,-30,-56,-51,-47,-37,-59,-55,-42,-43,-63,-27,-44,16,-153,-158,-152,-145,-305,-159,-170,-116,-29984,-29985,-6636,-5839,-29991,-29992]} 1. d4 {[%emt 0:00:03]} d5 {[%emt 0:00:01]} 2. c4 {[%emt 0:00:01]} e6 {[%emt 0:00:01]} 3. Nc3 {[%emt 0:00:03]} Nf6 {[%emt 0:00:06]} 4. Bg5 {[%emt 0:00:07]} Be7 {[%emt 0:00:02]} 5. Nf3 {[%emt 0:00:02]} h6 {[%emt 0:00:02]} 6. Bh4 {[%emt 0:00:03]} O-O {[%emt 0:00:05]} 7. e3 {[%emt 0:00:04]} Ne4 {[%emt 0:00:07]} 8. Bxe7 {[%emt 0:00:23]} Qxe7 {[%emt 0:00:02]} 9. Nxe4 {[%emt 0:01:05]} dxe4 {[%emt 0:00:02]} 10. Nd2 {[%emt 0:00:02]} f5 {[%emt 0:00:10]} 11. c5 {[%emt 0:00:35] D56: Queen's Gambit Declined: Lasker Defence.} e5 {[%emt 0:00:11]} 12. Bc4+ {[%emt 0:00:21]} Kh8 {[%emt 0:00:22]} 13. O-O {[%emt 0:01:33] [#] Black is slightly better.} Nd7 $146 {[%emt 0:00:34]} (13... exd4 $17 14. exd4 Rd8) ({Predecessor:} 13... exd4 14. exd4 Be6 15. Qb3 Bxc4 16. Nxc4 Rd8 17. Ne5 Rxd4 18. Ng6+ {1-0 (18) Molfenter,V-Scheerer,M freechess.de 2018}) 14. b4 {[%emt 0:01:11]} a5 {[%emt 0:00:27]} 15. a3 {[%emt 0:01:49]} exd4 {[%emt 0:00:36]} 16. exd4 {[%emt 0:00:01]} axb4 {[%emt 0:00:02]} 17. axb4 {[%emt 0:00:01]} Rxa1 {[%emt 0:00:01]} 18. Qxa1 {[%emt 0:00:02]} Nf6 {[%emt 0:00:01]} 19. Qa2 {[%emt 0:01:33]} c6 {[%emt 0:00:56]} 20. Bb3 {[%emt 0:00:59]} e3 {[%emt 0:01:49]} (20... Qd7 $15) 21. fxe3 $2 {[%emt 0:00:03] [#]} (21. Nc4 $11) 21... Qxe3+ $17 {[%emt 0:00:26]} 22. Kh1 {[%emt 0:00:03]} Qxd4 {[%emt 0:00:03] Black is more active.} 23. Nc4 $2 {[%emt 0:00:21]} (23. Bc4 $17) 23... Be6 {[%emt 0:00:47]} (23... Ne4 $19 24. Nd6 Nxd6 25. cxd6 Qxb4) 24. Rd1 {[%emt 0:00:16]} Qf4 $40 {[%emt 0:00:12][%mdl 128] White is in trouble.} ({Black should try} 24... Qg4 $19 {White must now prevent ...Bxc4.} 25. Ne3 Bxb3 26. Qxb3 Qe2) 25. Nd6 {[%emt 0:00:25][%mdl 8192] [#]} (25. Qd2 $17 Qxd2 26. Nxd2 Bxb3 27. Nxb3) 25... Ng4 $1 {[%emt 0:00:39][%csl Gg4][%cal Rf4h2]} 26. g3 {[%emt 0:01:00]} (26. Kg1 Qe3+) 26... Qf3+ {[%emt 0:00:07]} ({Weaker is} 26... Qxb4 27. Bxe6 Qxc5 28. Nf7+ (28. Nxb7 Qe3 $11) 28... Kh7 29. Rb1 $14) 27. Kg1 {[%emt 0:00:08]} Bxb3 {[%emt 0:00:05] Weighted Error Value: White=1.15/Black=0.28 (precise)} 0-1

[Event "Romanian Rapid Open 2022"]
[Site "Sebes"]
[Date "2022.12.02"]
[Round "1.24"]
[White "Filip, Andrei"]
[Black "Murg, Gheorghe"]
[Result "1-0"]
[ECO "E15"]
[WhiteElo "2331"]
[BlackElo "1312"]
[Annotator "TA"]
[PlyCount "79"]
[EventDate "2022.12.02"]
[EventType "rapid"]
[EventCountry "ROU"]
[SourceTitle "playchess.com"]
[Source "ChessBase"]
[SourceQuality "1"]
[TimeControl "600+5"]

{[%evp 17,79,14,12,-4,26,27,28,33,24,0,0,-18,85,72,89,84,162,154,167,168,170,162,166,170,165,171,184,158,280,272,259,236,221,129,227,227,223,177,174,136,131,128,131,27,37,47,81,83,198,200,195,195,197,224,207,154,454,232,945,926,957,947,930,850]} 1. Nf3 {[%emt 0:00:03]} Nf6 {[%emt 0:00:02]} 2. d4 {[%emt 0:00:03]} e6 {[%emt 0:00:04]} 3. c4 {[%emt 0:00:04]} b6 {[%emt 0:00:05]} 4. g3 {[%emt 0:00:03]} Ba6 {[%emt 0:00:11]} 5. b3 {[%emt 0:00:11]} Bb7 {[%emt 0:00:03]} 6. Bg2 {[%emt 0:00:03]} Bb4+ {[%emt 0:00:08]} 7. Bd2 {[%emt 0:00:20]} a5 {[%emt 0:00:01]} 8. O-O {[%emt 0:00:29]} O-O {[%emt 0:00:03]} 9. Bc3 {[%emt 0:01:07]} d5 {[%emt 0:00:16]} 10. cxd5 {[%emt 0:00:41] [#] E15: Queen's Indian: 4 g3 sidelines, 4 g3 Ba6 and 4 g3 Bb7 early deviations.} Nxd5 $146 {[%emt 0:00:12]} ({Predecessor:} 10... exd5 11. Bb2 Re8 12. a3 Bf8 13. Nc3 Nbd7 14. Rc1 c6 15. Re1 b5 16. Ne5 Nxe5 17. dxe5 Nd7 {½-½ (65) Barseghyan,A (2358)-Sturua,Z (2529) Yerevan 2022}) 11. Bb2 {[%emt 0:00:02]} Nd7 {[%emt 0:00:39]} 12. a3 {[%emt 0:00:09] White has an edge.} Be7 {[%emt 0:00:12]} 13. Nbd2 {[%emt 0:00:15]} c5 {[%emt 0:00:25]} 14. Nc4 {[%emt 0:00:47]} Bf6 {[%emt 0:01:12]} (14... b5 $11 15. Ncd2 Qb6) 15. e4 $16 {[%emt 0:00:38][%cal Be2e4,Be4e5][%mdl 32]} Nc7 {[%emt 0:00:33]} 16. Qc2 {[%emt 0:00:45]} Rb8 {[%emt 0:00:41]} (16... Nb5 $16 {might work better.}) 17. Rfd1 {[%emt 0:00:44]} Qe7 {[%emt 0:00:17]} 18. e5 {[%emt 0:00:11]} Bg5 {[%emt 0:00:29]} 19. Nxg5 {[%emt 0:00:33]} Qxg5 {[%emt 0:00:03]} 20. Bxb7 {[%emt 0:00:03]} Rxb7 {[%emt 0:00:15] [#]} 21. dxc5 $1 {[%emt 0:00:02]} Nxc5 {[%emt 0:00:46]} 22. b4 {[%emt 0:00:02]} axb4 {[%emt 0:00:35]} (22... N5a6 $16 23. Nd6 (23. bxa5 bxa5 24. Nxa5 Rb5 $16) 23... Rbb8) 23. axb4 $18 {[%emt 0:00:01][%cal Ba3b4,Bb4b5][%mdl 32]} N5a6 {[%emt 0:00:33]} 24. Nd6 {[%emt 0:00:53]} Rbb8 {[%emt 0:00:20] [#]} 25. Qc6 {[%emt 0:00:21]} ({White should play} 25. Rd4 $1 $18) 25... Qe7 {[%emt 0:00:48]} (25... Nd5 $16) 26. Bc3 {[%emt 0:00:53]} Rfd8 {[%emt 0:00:46]} 27. b5 {[%emt 0:00:15]} Nc5 {[%emt 0:00:27]} 28. Ra7 {[%emt 0:00:03]} Rd7 {[%emt 0:00:47]} 29. Bb4 {[%emt 0:00:39] White has more active pieces.} Nd5 {[%emt 0:00:23]} 30. Rxd7 {[%emt 0:00:20]} (30. Nc8 $16 Qd8 31. Bxc5 Rxa7 32. Nxa7 bxc5 33. Qxc5) 30... Nxd7 $11 {[%emt 0:00:14] Pair of Knights!} 31. Bc3 {[%emt 0:00:48]} Nc5 {[%emt 0:00:12]} 32. Bd4 $36 {[%emt 0:00:18][%mdl 2048] Keeping Black busy.} h6 {[%emt 0:00:30]} (32... Nb4 $16 {was necessary.} 33. Qf3 Nd7) 33. Bxc5 $18 {[%emt 0:00:08]} bxc5 {[%emt 0:00:02]} 34. Qxc5 {[%emt 0:00:25]} Qg5 {[%emt 0:00:13]} 35. Qa7 {[%emt 0:00:25]} Rf8 {[%emt 0:00:16]} 36. Re1 {[%emt 0:00:02] Threatens to win with b6.} Nf4 $2 {[%emt 0:00:14] This costs Black the game.} (36... Qd2 $16 {was called for.} 37. Qa1 Nc3) 37. Qe3 {[%emt 0:00:11]} (37. Qd4 $142 Nd5 38. b6 Nxb6 39. Qxb6) 37... Nh3+ {[%emt 0:00:07]} (37... Nd5 38. Qxg5 hxg5) 38. Kg2 {[%emt 0:00:01] White is clearly winning.} Qxe3 {[%emt 0:00:05]} 39. Rxe3 {[%emt 0:00:01]} Ng5 {[%emt 0:00:04]} 40. h4 {[%emt 0:00:01] Weighted Error Value: White=0.31/Black=0.47} 1-0

[Event "Romanian Rapid Open 2022"]
[Site "Sebes"]
[Date "2022.12.02"]
[Round "1.25"]
[White "Buciuman, Aurel"]
[Black "Ileana, George"]
[Result "0-1"]
[ECO "B55"]
[WhiteElo "1369"]
[BlackElo "2343"]
[Annotator "TA"]
[PlyCount "52"]
[EventDate "2022.12.02"]
[EventType "rapid"]
[EventCountry "ROU"]
[SourceTitle "playchess.com"]
[Source "ChessBase"]
[SourceQuality "1"]
[TimeControl "600+5"]

{[%evp 13,52,22,20,19,34,20,25,-23,0,-45,-34,-64,-76,-83,-79,-286,-266,-258,-36,-48,-24,-66,-12,-34,-34,-393,-387,-484,-483,-447,-430,-581,-565,-1014,-985,-1032,-1009,-1079,-1041,-1415,-1367]} 1. e4 {[%emt 0:00:04]} c5 {[%emt 0:00:01]} 2. Nf3 {[%emt 0:00:05]} d6 {[%emt 0:00:01]} 3. d4 {[%emt 0:00:02]} cxd4 {[%emt 0:00:02]} 4. Nxd4 {[%emt 0:00:01]} Nf6 {[%emt 0:00:01]} 5. f3 {[%emt 0:00:14]} e5 {[%emt 0:00:06]} 6. Nb3 {[%emt 0:00:21]} Be6 {[%emt 0:00:02]} 7. c4 {[%emt 0:00:26]} Be7 {[%emt 0:00:07]} ({Resist} 7... Nxe4 8. fxe4 Qh4+ 9. Kd2 $16) 8. Nc3 {[%emt 0:00:10] B55: Sicilian: 2...d6 3 d4 cxd4 4 Nxd4 Nf6 5 f3.} O-O {[%emt 0:00:05]} 9. Be3 {[%emt 0:00:24]} a5 {[%emt 0:00:30]} 10. a4 {[%emt 0:00:29]} (10. Be2 $142) 10... Na6 {[%emt 0:00:04]} 11. Qd2 {[%emt 0:00:21] [#]} Nb4 $146 {[%emt 0:00:25]} ({Predecessor:} 11... b6 12. Be2 Nc5 13. Nxc5 bxc5 14. O-O h6 15. Rfd1 Qb6 16. Nb5 Rfd8 17. b3 Ne8 {0-1 (127) Malecki,R (2006)-Kanarkiewicz,M (2066) Szklarska Poreba 2017}) 12. Be2 {[%emt 0:00:45]} Rc8 {[%emt 0:00:04]} 13. Nd5 {[%emt 0:00:51]} Nfxd5 {[%emt 0:00:02]} (13... Bxd5 {looks sharper.} 14. exd5 Nfxd5 15. cxd5 Rc2) 14. cxd5 {[%emt 0:01:12]} (14. exd5 $17 Bf5 15. Rc1) 14... Nc2+ $19 {[%emt 0:01:34]} 15. Kf2 {[%emt 0:00:23] [#]} Nxa1 $2 {[%emt 0:01:49]} ({Black should try} 15... Nxe3 $1 $19 16. dxe6 Nc2 17. exf7+ Rxf7 18. Qxa5 Bh4+ 19. g3 Nxa1 20. Qxd8+ Bxd8 21. Nxa1 Rfc7) 16. Rxa1 $15 {[%emt 0:00:06]} Bd7 {[%emt 0:00:06] White must now prevent ...f5.} 17. Nxa5 {[%emt 0:00:33]} Rb8 {[%emt 0:00:51]} (17... f5 $15 18. Kg1 (18. Nxb7 $2 {too greedy.} Qc7 $19) 18... fxe4 19. fxe4 Ra8) 18. b4 {[%emt 0:00:32]} (18. Kg1 {simplifies} Qe8 19. b3 b5 20. axb5 Bxb5 21. Bxb5 Qxb5 22. Nc6) 18... f5 $36 {[%emt 0:00:06][%cal Bf7f5,Bf5e4,Be4f3][%mdl 2080] ...f4 is the strong threat. Black fights for an advantage.} 19. g3 {[%emt 0:00:52][%mdl 8192] [#] Prevents f4.} (19. Kg1 $15) 19... fxe4 $19 {[%emt 0:00:03]} 20. Nc4 {[%emt 0:00:39]} exf3 {[%emt 0:00:03] Black is clearly winning.} 21. Bd3 {[%emt 0:00:19]} b5 {[%emt 0:00:16]} 22. axb5 {[%emt 0:01:14]} Bxb5 {[%emt 0:00:03]} 23. Na5 {[%emt 0:00:23]} Bxd3 {[%emt 0:01:42]} 24. Qxd3 {[%emt 0:00:09]} Rxb4 {[%emt 0:00:11]} 25. Nc6 {[%emt 0:00:32]} Rb2+ {[%emt 0:00:03]} 26. Kf1 {[%emt 0:00:22]} Qd7 {[%emt 0:00:03] Weighted Error Value: White=1.38/Black=0.15 (very precise)} 0-1

[Event "Romanian Rapid Open 2022"]
[Site "Sebes"]
[Date "2022.12.02"]
[Round "1.26"]
[White "Cnejev, Vladimir-Alexandru"]
[Black "Tiloiu, Darius-Lucian"]
[Result "1-0"]
[ECO "C02"]
[WhiteElo "2293"]
[BlackElo "1543"]
[Annotator "TA"]
[PlyCount "93"]
[EventDate "2022.12.02"]
[EventType "rapid"]
[EventCountry "ROU"]
[SourceTitle "playchess.com"]
[Source "ChessBase"]
[SourceQuality "1"]
[TimeControl "600+5"]

{[%evp 14,93,42,48,63,-8,0,-39,31,0,29,0,0,-7,0,0,0,-13,36,0,0,0,0,0,0,-27,56,0,4,0,104,98,179,179,177,171,168,105,94,-41,15,0,220,231,512,517,574,561,578,536,648,652,603,562,552,528,645,640,633,622,630,610,1025,1016,1347,1339,1374,1320,2034,1863,29981,29982,29979,29975,29975,29976,29975,29976,29976,29978,6713,4631]} 1. e4 {[%emt 0:00:03]} e6 {[%emt 0:00:01]} 2. d4 {[%emt 0:00:02]} d5 {[%emt 0:00:01]} 3. e5 {[%emt 0:00:02]} c5 {[%emt 0:00:01]} 4. c3 {[%emt 0:00:01]} Nc6 {[%emt 0:00:01]} 5. Nf3 {[%emt 0:00:02]} Bd7 {[%emt 0:00:03]} 6. a3 {[%emt 0:00:03]} Qb6 {[%emt 0:00:58]} 7. b4 {[%emt 0:00:08]} c4 {[%emt 0:01:16]} 8. a4 $1 {[%emt 0:00:01]} Nge7 {[%emt 0:00:45] C02: French: Advance Variation.} 9. Be3 {[%emt 0:00:52] [#]} (9. g3 $14) 9... Nf5 $146 {[%emt 0:00:13][%cal Oc6b4]} ({Predecessor:} 9... a6 10. Be2 Ng6 11. Nbd2 Be7 12. O-O O-O 13. Nxc4 dxc4 14. d5 Qc7 15. d6 Qc8 16. dxe7 Ncxe7 {½-½ (53) Vermeend,J-Spoelman,W Rijswijk 2000}) 10. Be2 {[%emt 0:01:36]} (10. Bf4 $5) 10... Be7 {[%emt 0:00:14]} (10... Nxe3 $15 11. fxe3 g6) 11. O-O {[%emt 0:00:04]} O-O {[%emt 0:00:26]} 12. Nbd2 {[%emt 0:00:55]} Nxe3 {[%emt 0:01:16]} 13. fxe3 {[%emt 0:00:03]} f6 {[%emt 0:00:04]} 14. exf6 {[%emt 0:00:28]} Bxf6 {[%emt 0:00:01]} 15. e4 {[%emt 0:00:06]} Qd8 {[%emt 0:01:05]} (15... Be8 $11) 16. g3 {[%emt 0:02:43]} (16. Qe1 $5 {[%cal Rb4b5]}) 16... Qc7 {[%emt 0:01:12]} 17. e5 {[%emt 0:00:29]} Be7 {[%emt 0:00:02]} 18. Kg2 {[%emt 0:00:01]} Be8 {[%emt 0:00:37]} 19. h4 {[%emt 0:00:17]} (19. b5 Nd8 $15) 19... Qd8 {[%emt 0:00:18]} (19... Bg6 $11) 20. Nh2 {[%emt 0:00:20]} ({Much weaker is} 20. b5 Na5 $11) ({Better is} 20. Ng1 $1 $14) 20... Bg6 $11 {[%emt 0:00:16][%cal Oe7b4]} 21. Bg4 {[%emt 0:00:31]} Bf5 {[%emt 0:00:24]} (21... Qd7 $11) 22. Bxf5 $16 {[%emt 0:00:05]} Rxf5 {[%emt 0:00:15]} (22... exf5 $16 23. b5 Na5) 23. Rxf5 $18 {[%emt 0:00:01]} exf5 {[%emt 0:00:02]} 24. Qf3 {[%emt 0:00:01]} Qd7 {[%emt 0:00:23]} 25. Re1 {[%emt 0:00:38]} (25. b5 $18) 25... Rf8 {[%emt 0:00:44] [#]} 26. h5 {[%emt 0:01:05]} (26. e6 $1 $16 {[%cal Re6d7]} Qd6 27. b5) 26... Qe6 {[%emt 0:01:09]} ({Black should play} 26... Nd8 $15) 27. Nhf1 {[%emt 0:01:05][%cal Bh2f1,Bf1e3,Be3d5][%mdl 32] Threatens to win with b5.} Nd8 $2 {[%emt 0:00:14] [#] White leaves nothing to chance now.} (27... f4 $11 {and Black is okay.}) 28. Ne3 $1 {[%emt 0:00:06]} Qd7 {[%emt 0:00:16]} (28... Bg5 29. Ndf1 (29. Qxd5 Qxd5+ 30. Nxd5 Bxd2 $15) 29... f4 30. gxf4 (30. Nxd5 fxg3 31. Qe4 Qf7 $16) 30... Rxf4 31. Qxd5 h6 32. Qxc4 Re4) 29. Qxd5+ {[%emt 0:00:03]} Qxd5+ {[%emt 0:00:03]} 30. Nxd5 {[%emt 0:00:02]} Bg5 {[%emt 0:00:01]} 31. Nxc4 {[%emt 0:00:01]} Nc6 {[%emt 0:00:03]} 32. b5 {[%emt 0:00:03]} Ne7 {[%emt 0:00:03]} 33. Nxe7+ {[%emt 0:00:02]} Bxe7 {[%emt 0:00:01][%mdl 4096] Endgame KRB-KRN} 34. Ne3 {[%emt 0:00:16]} g6 {[%emt 0:00:03]} 35. hxg6 {[%emt 0:00:01]} hxg6 {[%emt 0:00:01]} 36. Nd5 {[%emt 0:00:16]} Ba3 {[%emt 0:00:13]} 37. e6 {[%emt 0:00:08][%cal Be5e6,Be6e7][%mdl 32]} Kg7 {[%emt 0:00:07]} 38. c4 {[%emt 0:00:22]} b6 {[%emt 0:00:11]} 39. c5 {[%emt 0:00:08]} bxc5 {[%emt 0:00:02]} 40. e7 {[%emt 0:00:01]} Re8 {[%emt 0:00:09]} 41. Nc7 {[%emt 0:00:01] b6 would kill now.} Kf7 {[%emt 0:00:07]} 42. Nxe8 {[%emt 0:00:02]} Kxe8 {[%emt 0:00:01]} 43. dxc5 {[%emt 0:00:06]} Bxc5 {[%emt 0:00:02]} 44. Re6 {[%emt 0:00:03]} Bxe7 {[%emt 0:00:08]} 45. Rxg6 {[%emt 0:00:03]} Kf7 {[%emt 0:00:03]} 46. Ra6 {[%emt 0:00:02]} Bc5 {[%emt 0:00:04]} 47. a5 {[%emt 0:00:02] Weighted Error Value: White=0.23 (precise) /Black=0.58} 1-0

[Event "Romanian Rapid Open 2022"]
[Site "Sebes"]
[Date "2022.12.02"]
[Round "1.27"]
[White "Butuza, Stefan Aurelian"]
[Black "Nastore, Pavel-Alexandru"]
[Result "0-1"]
[ECO "B22"]
[WhiteElo "1529"]
[BlackElo "2218"]
[Annotator "TA"]
[PlyCount "105"]
[EventDate "2022.12.02"]
[EventType "rapid"]
[EventCountry "ROU"]
[SourceTitle "playchess.com"]
[Source "ChessBase"]
[SourceQuality "1"]
[TimeControl "600+5"]

{[%evp 19,105,0,23,17,18,4,29,-11,-3,-18,18,-8,-14,-18,11,13,13,0,12,22,11,5,13,-10,2,-5,12,0,0,0,0,0,0,-22,-30,-57,0,-46,-41,-50,-8,-9,0,0,0,0,0,0,0,0,0,0,0,0,69,-3,150,141,197,41,51,0,8,-24,-18,-25,-19,-21,-8,-20,0,-32,-27,-63,-65,-341,-339,-29990,-162,-211,-110,-173,-103,-110,-112,-29982,-29983,-29986]} 1. e4 {[%emt 0:00:03]} c5 {[%emt 0:00:07]} 2. c3 {[%emt 0:00:02]} d5 {[%emt 0:00:29]} 3. exd5 {[%emt 0:00:02]} Qxd5 {[%emt 0:00:01]} 4. d4 {[%emt 0:00:01]} Nf6 {[%emt 0:00:07]} 5. Nf3 {[%emt 0:00:04]} Nc6 {[%emt 0:00:07]} 6. Be3 {[%emt 0:00:08]} cxd4 {[%emt 0:00:09]} 7. cxd4 {[%emt 0:00:02]} e6 {[%emt 0:00:10]} 8. Be2 {[%emt 0:00:59]} Be7 {[%emt 0:00:02]} 9. O-O {[%emt 0:00:04]} O-O {[%emt 0:00:04]} 10. Nc3 {[%emt 0:00:01]} Qa5 {[%emt 0:01:28]} 11. Qb3 {[%emt 0:01:26] B22: Sicilian: 2 c3.} Rd8 {[%emt 0:00:36]} 12. Rfd1 {[%emt 0:00:33]} Qb4 {[%emt 0:01:11]} 13. Qxb4 {[%emt 0:00:52] White has an edge.} Nxb4 {[%emt 0:00:01]} 14. Rac1 {[%emt 0:00:09]} a6 {[%emt 0:00:11] [#]} 15. a3 $146 {[%emt 0:00:07]} ({Predecessor:} 15. Bg5 Bd7 16. Ne5 Be8 17. Bf3 h6 18. Bh4 g5 19. Bg3 Nbd5 20. Nxd5 Nxd5 21. Bxd5 Rxd5 {0-1 (68) Pales,D (2014)-Baranek,J (2152) Slovakia 2014}) 15... Nbd5 {[%emt 0:00:03]} 16. Ne5 {[%emt 0:01:43]} Nxe3 {[%emt 0:02:53]} 17. fxe3 {[%emt 0:00:32]} Bd7 {[%emt 0:00:32]} 18. Bf3 {[%emt 0:00:10]} Rab8 {[%emt 0:00:01]} 19. Nxd7 {[%emt 0:00:19]} Rxd7 {[%emt 0:00:07]} 20. Kf2 {[%emt 0:01:54]} b5 {[%emt 0:00:03][%cal Bb7b5,Bb5b4][%mdl 32]} 21. b4 {[%emt 0:00:32][%cal Bb2b4,Bb4a5][%mdl 32]} h6 {[%emt 0:00:21]} 22. h3 {[%emt 0:00:06]} g5 {[%emt 0:00:19]} 23. g4 {[%emt 0:00:25]} (23. d5 {simplifies} exd5 24. Nxd5 Nxd5 25. Rxd5 Ra7 26. Rc6) 23... a5 {[%emt 0:01:08]} 24. bxa5 {[%emt 0:00:36]} Bxa3 {[%emt 0:00:04]} 25. Rb1 {[%emt 0:00:36]} b4 {[%emt 0:00:03]} 26. Na4 {[%emt 0:00:04]} Ra7 {[%emt 0:00:06]} 27. Rd3 {[%emt 0:00:25] And now Rxa3 would win.} Kg7 {[%emt 0:00:31]} (27... Rxa5 28. Rxa3 bxa3 29. Rxb8+ $11) (27... Rc8 $15) 28. Nc5 {[%emt 0:00:17]} ({Not} 28. Rxa3 $2 bxa3 29. Ra1 (29. Rxb8 $2 {is the wrong capture.} a2 $19) 29... Rxa5 $19) (28. Nb6 $11 Rxa5 29. Nc4) 28... Rxa5 $15 {[%emt 0:00:06]} 29. Rdb3 {[%emt 0:00:08]} Kg6 {[%emt 0:01:07]} 30. Nd3 {[%emt 0:00:06]} Rab5 {[%emt 0:00:15]} 31. Ne5+ {[%emt 0:00:05]} Kg7 {[%emt 0:00:02]} 32. Nd3 {[%emt 0:00:01]} (32. Nc4 $5 Rc8 $8 33. Be2 $11 (33. Nxa3 Ra5 $11)) 32... R5b6 {[%emt 0:00:05]} 33. Nc5 {[%emt 0:00:02]} Kg6 {[%emt 0:00:06]} 34. Nd3 {[%emt 0:00:02]} Nd7 {[%emt 0:00:03]} 35. Be4+ {[%emt 0:00:03]} f5 {[%emt 0:00:01]} 36. Bf3 {[%emt 0:00:15]} Nf6 {[%emt 0:00:11]} (36... Kg7 $11) 37. Nc5 {[%emt 0:00:06]} (37. Ne5+ $14 Kg7 38. Nc4) 37... f4 $2 {[%emt 0:00:05]} (37... Kf7 $11) 38. exf4 $1 $16 gxf4 {[%emt 0:00:01] [#]} (38... Kg7 $16 {is a better defense.} 39. h4 gxh4) 39. Ke2 $2 {[%emt 0:00:11]} ({White has to play} 39. h4 $1 $18) 39... Kf7 $14 {[%emt 0:00:04]} 40. Kd3 {[%emt 0:00:01]} (40. h4 $1 $14) 40... Ke7 {[%emt 0:00:06]} 41. Kc4 {[%emt 0:00:02]} (41. h4 {seems wilder.} Rb5 42. g5 hxg5 43. hxg5 Nh7 44. g6) 41... Nd7 {[%emt 0:00:03] Black wants to play ...Rc8.} 42. Nxd7 {[%emt 0:00:21]} Kxd7 {[%emt 0:00:26]} 43. Kd3 {[%emt 0:00:00]} Kc7 {[%emt 0:00:00]} 44. Re1 {[%emt 0:00:00]} Rd6 {[%emt 0:00:00]} 45. Re4 {[%emt 0:00:01][%cal Oe4e5]} Rf8 {[%emt 0:00:00]} 46. Re1 {[%emt 0:00:11]} Rfd8 {[%emt 0:00:00]} 47. Kc2 $2 {[%emt 0:00:04][%mdl 8192]} (47. d5 $1 $15) 47... Rxd4 $19 {[%emt 0:00:00]} 48. Rxe6 $2 {[%emt 0:00:02]} (48. h4 $19) 48... Rd2+ $2 {[%emt 0:00:00]} (48... Rc4+ {mates} 49. Rc3 Rxc3+ 50. Kb1 b3 51. Re1 Rxf3 52. Rg1 Rfd3 53. Rc1+ Bxc1 54. Kxc1 Rd2 55. Kb1 Rc2 56. h4 Rd1#) 49. Kb1 {[%emt 0:00:04]} Rf2 {[%emt 0:00:01]} (49... R8d3 $19 50. Rxd3 Rxd3) 50. Re2 {[%emt 0:00:10] [#]} (50. Rc6+ $17 Kb8 51. Rc2) 50... Rd1+ {[%emt 0:00:04]} ({Better is} 50... Rxe2 $1 $19 51. Bxe2 Rd2) 51. Kc2 $17 {[%emt 0:00:02]} Rc1+ {[%emt 0:00:02]} 52. Kd3 $2 {[%emt 0:00:01][%mdl 8192]} (52. Kd2 $17 Rff1 53. Re4) 52... Rxf3+ {[%emt 0:00:01]} 53. Kd4 {[%emt 0:00:20] Black used his chance.   Weighted Error Value: White=0.52/Black=0.37} 0-1